bitfinex-derivatives/quotes_BTCF0:USTF0_20210109
["timestamp","ask_amount","ask_price","bid_price","bid_amount"]
[1610213367684,4.19642608,40432.0,40412.0,3.6336]
[1610213367685,4.19642608,40432.0,40413.0,0.00024728]
[1610213367882,4.19642608,40432.0,40412.0,3.6336]
[1610213368183,4.19642608,40432.0,40414.0,0.00024728]
[1610213368384,0.23782608,40432.0,40414.0,0.00024728]
[1610213368585,0.23782608,40432.0,40417.0,3.9235]
[1610213368986,0.23782608,40432.0,40431.0,0.13632608]
[1610213370389,3.29672608,40432.0,40431.0,0.13632608]
[1610213371192,0.23782608,40432.0,40431.0,0.13632608]
[1610213371390,0.13632608,40432.0,40431.0,0.13632608]
[1610213373291,0.1556,40433.0,40431.0,0.13632608]
[1610213373692,0.1556,40433.0,40431.0,0.66712608]
[1610213373891,0.3179,40450.0,40431.0,0.13632608]
[1610213374091,0.1556,40452.0,40432.0,3.4122]
[1610213375092,0.1556,40452.0,40451.0,0.13632608]
[1610213375493,3.9859,40452.0,40451.0,0.13632608]
[1610213377096,4.12222608,40452.0,40451.0,0.13632608]
[1610213377598,4.12222608,40452.0,40433.0,3.66330595]
[1610213379097,3.9859,40452.0,40446.0,0.13632608]
[1610213379297,3.9859,40452.0,40433.0,3.66330595]
[1610213379998,0.1556,40452.0,40425.0,0.12015]
[1610213380197,0.1556,40452.0,40431.0,4.012]
[1610213380600,0.1556,40452.0,40431.0,4.0984]
[1610213380800,0.6067,40452.0,40431.0,4.0984]
[1610213381201,0.6067,40452.0,40435.0,0.13632608]
[1610213383303,0.13632608,40436.0,40435.0,0.13632608]
[1610213384104,0.13632608,40436.0,40431.0,0.0864]
[1610213384304,4.09732608,40436.0,40431.0,0.0864]
[1610213384704,4.09732608,40436.0,40414.0,0.10721]
[1610213384903,4.09732608,40436.0,40415.0,0.00024722]
[1610213385107,4.09732608,40436.0,40415.0,0.11402722]
[1610213385304,0.13632608,40416.0,40415.0,0.11378]
[1610213389011,0.13632608,40416.0,40415.0,0.11402731]
[1610213399326,0.13632608,40416.0,40415.0,0.25035339]
[1610213400929,0.13632608,40416.0,40415.0,0.11402731]
[1610213403834,0.13632608,40416.0,40415.0,0.11378]
[1610213404232,0.13632608,40416.0,40408.0,3.6171]
[1610213404733,0.13632608,40416.0,40409.0,0.00024972]
[1610213405336,0.13632608,40410.0,40409.0,0.00024972]
[1610213412050,0.13632608,40410.0,40409.0,0.02207798]
[1610213412249,0.08177,40430.0,40409.0,0.02207798]
[1610213412450,3.9012,40432.0,40409.0,0.02207798]
[1610213412651,0.1556,40435.0,40424.0,3.8465]
[1610213413049,0.1556,40435.0,40425.0,0.00024965]
[1610213413450,0.1556,40435.0,40434.0,0.13632608]
[1610213413852,0.13632608,40437.0,40434.0,0.1365757]
[1610213414052,0.13632608,40437.0,40435.0,3.4827]
[1610213414253,0.13632608,40437.0,40435.0,3.48294962]
[1610213414450,0.13632608,40437.0,40436.0,0.00024962]
[1610213420361,0.1556,40453.0,40436.0,0.00024962]
[1610213421561,0.1556,40453.0,40446.0,0.13632608]
[1610213422361,0.10453,40460.0,40452.0,3.4766]
[1610213422561,0.1556,40468.0,40452.0,3.4766]
[1610213422562,0.15874294,40468.0,40452.0,3.4766]
[1610213422762,0.1556,40468.0,40452.0,3.4766]
[1610213423464,0.1556,40468.0,40459.0,0.13632608]
[1610213424268,0.1556,40468.0,40449.0,3.4948]
[1610213425466,0.13632608,40450.0,40449.0,3.4948]
[1610213425667,0.13632608,40450.0,40443.0,0.13632608]
[1610213427469,0.13632608,40444.0,40443.0,0.13632608]
[1610213429871,0.13632608,40444.0,40442.0,0.11034]
[1610213430072,0.13632608,40444.0,40433.0,0.11164]
[1610213430475,0.13632608,40444.0,40434.0,0.00024956]
[1610213430672,0.13632608,40444.0,40434.0,0.08847956]
[1610213431071,0.13632608,40444.0,40435.0,0.00024956]
[1610213431476,0.13632608,40436.0,40435.0,0.00024956]
[1610213431674,0.13632608,40436.0,40434.0,0.08823]
[1610213431675,0.13632608,40436.0,40427.0,0.13632608]
[1610213432073,0.13632608,40436.0,40428.0,0.00024961]
[1610213432274,0.13632608,40436.0,40390.0,2.69354585]
[1610213432275,0.13632608,40436.0,40391.0,2.82758164]
[1610213432473,3.6767,40430.0,40410.0,4.0965]
[1610213432673,3.6767,40430.0,40416.0,0.00024963]
[1610213432874,3.6767,40430.0,40411.0,0.00024963]
[1610213433076,3.6767,40430.0,40417.0,0.00024963]
[1610213433474,3.6767,40430.0,40423.0,0.13632608]
[1610213433874,3.6767,40430.0,40424.0,0.00024965]
[1610213435476,3.6767,40430.0,40429.0,0.13632608]
[1610213436076,3.6767,40430.0,40429.0,0.13657571]
[1610213436478,0.1556,40435.0,40429.0,0.13657571]
[1610213436678,0.1556,40435.0,40429.0,4.16217571]
[1610213436879,0.1556,40435.0,40430.0,0.00024963]
[1610213437482,0.1556,40435.0,40434.0,0.13632608]
[1610213437882,0.1556,40435.0,40434.0,0.13657569]
[1610213439481,0.29192608,40435.0,40434.0,0.13657569]
[1610213441883,0.29192608,40435.0,40434.0,0.00024961]
[1610213442482,3.3824,40431.0,40424.0,0.00024961]
[1610213442685,3.3824,40431.0,40423.0,0.10548]
[1610213442882,3.3824,40431.0,40424.0,0.00024964]
[1610213443282,3.3824,40431.0,40414.0,0.02207297]
[1610213443484,3.3824,40431.0,40425.0,0.00024966]
[1610213443683,3.3824,40431.0,40415.0,0.00024966]
[1610213443882,3.46891,40431.0,40426.0,0.00024968]
[1610213444284,3.46891,40431.0,40415.0,0.00024968]
[1610213444484,3.46891,40431.0,40427.0,0.00024968]
[1610213444683,3.46891,40431.0,40416.0,0.0002497]
[1610213445084,3.46891,40431.0,40428.0,0.0002497]
[1610213445286,3.46891,40431.0,40417.0,0.0002497]
[1610213445484,0.13632608,40418.0,40406.0,0.13632608]
[1610213445885,0.13632608,40418.0,40407.0,0.00024973]
[1610213447588,0.13632608,40408.0,40406.0,0.13632608]
[1610213447988,0.13632608,40408.0,40407.0,0.00024973]
[1610213452594,0.13632608,40408.0,40407.0,0.00025055]
[1610213453996,0.13632608,40408.0,40404.0,0.00025055]
[1610213455094,0.4991,40405.0,40404.0,0.00025055]
[1610213457098,0.4991,40405.0,40374.0,0.02238609]
[1610213457498,0.4991,40405.0,40374.0,0.02213546]
[1610213457698,0.4991,40405.0,40375.0,0.0002507]
[1610213457899,0.4991,40405.0,40375.0,0.1154107]
[1610213458300,0.4991,40405.0,40375.0,0.11516]
[1610213458499,0.4991,40405.0,40376.0,0.00025072]
[1610213459702,0.13632608,40377.0,40376.0,0.00025072]
[1610213462508,0.13632608,40377.0,40361.0,0.13632608]
[1610213462509,0.13632608,40377.0,40362.0,0.00025074]
[1610213463710,0.13632608,40363.0,40362.0,0.00025074]
[1610213465309,4.11052608,40363.0,40362.0,0.00025074]
[1610213466111,4.11052608,40363.0,40357.0,0.00025086]
[1610213466310,0.13632608,40363.0,40362.0,0.00025086]
[1610213466510,3.95612608,40363.0,40362.0,0.00025086]
[1610213466710,3.95612608,40363.0,40358.0,0.00025089]
[1610213466910,3.95612608,40363.0,40362.0,0.00025089]
[1610213467110,3.95612608,40363.0,40357.0,0.07761]
[1610213467111,3.95612608,40363.0,40359.0,0.00025089]
[1610213467310,0.13632608,40363.0,40359.0,0.00025089]
[1610213467510,0.13632608,40363.0,40362.0,0.00025091]
[1610213467709,0.13632608,40363.0,40360.0,0.00025091]
[1610213467911,0.13632608,40363.0,40362.0,0.00025091]
[1610213468313,0.13632608,40363.0,40361.0,0.00025091]
[1610213468509,0.13632608,40363.0,40347.0,0.09312]
[1610213469812,0.13632608,40348.0,40347.0,0.09312]
[1610213471812,0.13632608,40348.0,40347.0,0.22944608]
[1610213474920,2.8381,40366.0,40347.0,0.22944608]
[1610213475921,0.13632608,40358.0,40357.0,0.13632608]
[1610213476621,0.13632608,40358.0,40351.0,2.8973]
[1610213477023,0.13632608,40358.0,40350.0,2.9584]
[1610213477424,0.13632608,40358.0,40347.0,0.09312]
[1610213477623,0.13632608,40358.0,40350.0,3.0815]
[1610213477822,0.13632608,40351.0,40350.0,3.33629608]
[1610213479125,0.2996,40380.0,40350.0,3.33629608]
[1610213479524,0.07878,40381.0,40350.0,3.33629608]
[1610213479724,3.1533,40384.0,40350.0,3.33629608]
[1610213479923,3.1533,40384.0,40363.0,0.13632608]
[1610213480524,0.0746,40392.0,40363.0,0.13632608]
[1610213480926,2.8685,40395.0,40363.0,0.13632608]
[1610213481325,0.00030284,40394.0,40363.0,0.13632608]
[1610213481525,0.10959284,40394.0,40363.0,0.13632608]
[1610213481925,0.13632608,40364.0,40363.0,0.13632608]
[1610213483127,0.21022608,40364.0,40363.0,0.13632608]
[1610213483429,0.13632608,40364.0,40363.0,0.13632608]
[1610213484027,0.13632608,40364.0,40360.0,3.2855]
[1610213484227,0.13632608,40364.0,40361.0,0.00025091]
[1610213484428,0.21062608,40364.0,40361.0,0.00025091]
[1610213485128,0.13632608,40364.0,40361.0,0.00025091]
[1610213486229,0.0753,40363.0,40361.0,0.00025091]
[1610213486928,0.13632608,40364.0,40361.0,0.00025091]
[1610213487829,0.13632608,40364.0,40363.0,0.13632608]
[1610213488231,0.13632608,40364.0,40363.0,0.13657699]
[1610213488429,0.13632608,40364.0,40363.0,0.00025091]
[1610213489029,0.13632608,40364.0,40361.0,0.00025091]
[1610213489229,0.21002608,40364.0,40361.0,0.00025091]
[1610213491832,0.13632608,40364.0,40361.0,0.00025091]
[1610213492934,0.1854459,40363.0,40361.0,0.00025091]
[1610213493835,0.1854459,40363.0,40362.0,0.13632608]
[1610213494233,0.1854459,40363.0,40362.0,0.13657699]
[1610213495134,0.2589459,40363.0,40362.0,0.13657699]
[1610213495535,0.1854459,40363.0,40362.0,0.13657699]
[1610213497734,0.1854459,40363.0,40362.0,0.1587723]
[1610213498138,0.1854459,40363.0,40362.0,0.00025091]
[1610213498539,0.1854459,40363.0,40361.0,0.00025091]
[1610213498739,0.1854459,40363.0,40360.0,0.1136]
[1610213498740,0.1854459,40363.0,40362.0,0.00025091]
[1610213498941,0.2603459,40363.0,40362.0,0.00025091]
[1610213499339,0.2603459,40363.0,40361.0,0.00025091]
[1610213499540,0.2603459,40363.0,40362.0,0.00025091]
[1610213500139,0.2603459,40363.0,40361.0,0.00025093]
[1610213500343,0.2603459,40363.0,40362.0,0.00025093]
[1610213500739,0.1854459,40363.0,40362.0,0.00025093]
[1610213500940,0.1854459,40363.0,40361.0,0.00025093]
[1610213501139,0.1854459,40363.0,40360.0,0.1136]
[1610213501339,0.1854459,40363.0,40361.0,0.00025094]
[1610213501739,0.1854459,40363.0,40361.0,0.02245175]
[1610213501939,0.1854459,40363.0,40353.0,0.0224517]
[1610213502141,0.1854459,40363.0,40362.0,0.02245139]
[1610213502439,0.1854459,40363.0,40354.0,0.02245114]
[1610213502639,0.1854459,40363.0,40362.0,0.02245206]
[1610213503039,0.1854459,40363.0,40353.0,0.02245286]
[1610213503241,0.1854459,40363.0,40362.0,0.0224535]
[1610213503441,0.1854459,40363.0,40354.0,0.02245315]
[1610213503741,0.1854459,40363.0,40362.0,0.02245238]
[1610213504144,0.1854459,40363.0,40355.0,0.02245226]
[1610213504343,0.0736,40362.0,40353.0,0.06791204]
[1610213504544,0.0736,40362.0,40356.0,0.02245162]
[1610213504746,0.0736,40362.0,40356.0,0.02220068]
[1610213504946,0.0736,40362.0,40354.0,0.022452]
[1610213505146,0.0736,40362.0,40353.0,0.06791261]
[1610213505350,0.1854459,40363.0,40353.0,0.06791261]
[1610213505946,0.13632608,40354.0,40353.0,0.06791261]
[1610213506145,0.13632608,40354.0,40353.0,0.06766167]
[1610213506546,0.13632608,40354.0,40353.0,0.02245188]
[1610213510951,0.13632608,40354.0,40351.0,0.02245643]
[1610213511151,0.13632608,40354.0,40353.0,0.02245637]
[1610213511550,0.13632608,40354.0,40352.0,0.02245703]
[1610213511751,0.13632608,40354.0,40353.0,0.02245675]
[1610213511951,0.13632608,40354.0,40351.0,0.02245675]
[1610213512352,0.13632608,40354.0,40353.0,0.02245804]
[1610213512553,0.13632608,40354.0,40352.0,0.02245781]
[1610213512853,0.13632608,40354.0,40351.0,0.02074951]
[1610213513054,0.13632608,40354.0,40353.0,0.02074956]
[1610213513254,0.13632608,40354.0,40352.0,0.02074991]
[1610213513654,0.13632608,40354.0,40353.0,0.02074994]
[1610213514155,0.13632608,40354.0,40351.0,0.02074971]
[1610213514355,0.13632608,40354.0,40353.0,0.02074985]
[1610213514554,0.13632608,40354.0,40352.0,0.02075028]
[1610213514954,3.9492,40353.0,40351.0,0.02075128]
[1610213515154,3.9492,40353.0,40350.0,0.11847]
[1610213515354,3.9492,40353.0,40352.0,0.0002463]
[1610213515754,3.9492,40353.0,40351.0,0.00024632]
[1610213515956,3.9492,40353.0,40352.0,0.00024632]
[1610213516155,0.13632608,40354.0,40352.0,0.00024632]
[1610213516555,0.13632608,40354.0,40348.0,0.00024632]
[1610213516757,0.13632608,40354.0,40353.0,0.00024632]
[1610213516956,0.13632608,40354.0,40338.0,0.02075612]
[1610213517357,0.13632608,40354.0,40353.0,0.00024634]
[1610213517556,0.13632608,40354.0,40339.0,0.02075708]
[1610213517757,0.13632608,40354.0,40353.0,0.00024634]
[1610213517958,0.13632608,40354.0,40341.0,3.63361031]
[1610213518156,0.13632608,40354.0,40341.0,3.6131]
[1610213518356,0.13632608,40354.0,40353.0,0.00024634]
[1610213518756,0.13632608,40354.0,40342.0,3.30445628]
[1610213518957,0.13632608,40354.0,40353.0,0.00024632]
[1610213519156,0.13632608,40354.0,40343.0,0.02075513]
[1610213519357,0.13632608,40354.0,40345.0,3.3512]
[1610213519556,0.13632608,40354.0,40353.0,0.00024632]
[1610213519757,0.13632608,40354.0,40349.0,3.9829]
[1610213519959,0.13632608,40354.0,40353.0,0.00024632]
[1610213520158,0.13632608,40354.0,40349.0,3.9829]
[1610213520558,0.13632608,40354.0,40350.0,0.00024629]
[1610213521758,0.13632608,40354.0,40350.0,0.02074974]
[1610213522563,0.13632608,40354.0,40350.0,0.00024629]
[1610213522861,0.13632608,40354.0,40351.0,0.00024641]
[1610213523362,0.13632608,40354.0,40349.0,3.9829]
[1610213523363,0.13632608,40354.0,40350.0,0.00024641]
[1610213523762,0.13632608,40354.0,40352.0,0.00024641]
[1610213523961,0.13632608,40354.0,40349.0,3.9829]
[1610213523962,0.13632608,40354.0,40351.0,0.00024641]
[1610213524162,0.13632608,40354.0,40353.0,0.00024641]
[1610213524563,0.13632608,40354.0,40352.0,0.00024641]
[1610213524765,0.13632608,40354.0,40353.0,0.00024641]
[1610213525363,0.13632608,40354.0,40353.0,3.9634]
[1610213525563,0.13632608,40354.0,40353.0,3.96364641]
[1610213525763,0.1854459,40363.0,40353.0,3.9634]
[1610213525963,0.13632608,40355.0,40354.0,0.13632608]
[1610213526365,0.13632608,40355.0,40354.0,0.13657247]
[1610213526565,0.13632608,40355.0,40354.0,0.15712228]
[1610213529167,0.2606459,40363.0,40354.0,0.15712228]
[1610213529369,0.1854459,40363.0,40354.0,0.15712228]
[1610213529770,0.1854459,40363.0,40355.0,0.02079004]
[1610213529969,0.1854459,40363.0,40362.0,3.1235]
[1610213530169,0.1854459,40363.0,40362.0,3.25982608]
[1610213530570,0.1854459,40363.0,40362.0,3.28061497]
[1610213531773,0.2599459,40363.0,40362.0,3.28061497]
[1610213532174,0.2599459,40363.0,40362.0,3.32370251]
[1610213532372,0.2599459,40363.0,40362.0,4.78061497]
[1610213533373,0.2599459,40363.0,40362.0,3.28061497]
[1610213533673,0.1854459,40363.0,40362.0,3.28061497]
[1610213533874,3.1691,40407.0,40362.0,4.68061497]
[1610213534074,0.00306958,40414.0,40395.0,0.13632608]
[1610213534273,0.00306958,40414.0,40398.0,3.0008]
[1610213534474,0.01053373,40417.0,40398.0,3.0008]
[1610213534672,0.0741,40407.0,40398.0,3.0008]
[1610213535674,0.0741,40407.0,40395.0,0.13632608]
[1610213535874,0.0741,40407.0,40404.0,3.1287]
[1610213536076,0.21042608,40407.0,40406.0,0.13632608]
[1610213536275,0.13632608,40407.0,40406.0,0.13632608]
[1610213536976,0.13632608,40407.0,40397.0,3.7063]
[1610213537175,0.0752,40406.0,40397.0,3.7063]
[1610213537375,0.0752,40406.0,40392.0,0.1103]
[1610213538079,0.13632608,40393.0,40392.0,0.1103]
[1610213539177,0.20952608,40393.0,40392.0,0.1103]
[1610213539378,0.20952608,40393.0,40392.0,0.4783]
[1610213539977,0.13632608,40393.0,40392.0,0.4783]
[1610213541381,0.21022608,40393.0,40392.0,0.4783]
[1610213541881,0.13632608,40393.0,40392.0,0.4783]
[1610213542082,0.13632608,40393.0,40392.0,0.61462608]
[1610213542482,0.26117773,40406.0,40392.0,0.61462608]
[1610213542682,0.26117773,40406.0,40392.0,0.68995608]
[1610213543082,0.0752,40405.0,40392.0,0.68995608]
[1610213543284,0.26117773,40406.0,40392.0,0.55363]
[1610213544183,0.13632608,40393.0,40392.0,0.55363]
[1610213544384,0.21082608,40393.0,40392.0,0.55363]
[1610213544587,0.21082608,40393.0,40392.0,0.07533]
[1610213544986,0.13632608,40393.0,40392.0,0.07533]
[1610213548088,0.13632608,40393.0,40392.0,0.5405]
[1610213549888,0.13632608,40393.0,40392.0,0.65067]
[1610213550291,0.13632608,40393.0,40392.0,0.78699608]
[1610213550691,0.13632608,40393.0,40392.0,0.78724225]
[1610213552093,0.26117773,40406.0,40392.0,0.78724225]
[1610213552293,0.39750381,40406.0,40392.0,0.78724225]
[1610213552593,0.39750381,40406.0,40393.0,0.00024617]
[1610213554195,0.39750381,40406.0,40405.0,0.13632608]
[1610213554595,0.39750381,40406.0,40405.0,0.13657219]
[1610213554795,0.39750381,40406.0,40405.0,3.46047219]
[1610213560101,0.47120381,40406.0,40405.0,3.46047219]
[1610213560301,0.39750381,40406.0,40405.0,3.46047219]
[1610213561703,0.47170381,40406.0,40405.0,3.46047219]
[1610213561904,0.39750381,40406.0,40405.0,3.46047219]
[1610213564708,0.39750381,40406.0,40405.0,0.13657219]
[1610213567414,0.39750381,40406.0,40405.0,0.00024611]
[1610213567913,0.39750381,40406.0,40402.0,0.00024609]
[1610213568315,0.26117773,40406.0,40405.0,0.13657217]
[1610213568515,0.26117773,40406.0,40405.0,0.13632608]
[1610213568715,0.26117773,40406.0,40405.0,0.13657217]
[1610213568915,0.26117773,40406.0,40405.0,4.15757217]
[1610213574018,0.26117773,40406.0,40405.0,4.17910615]
[1610213575418,0.33467773,40406.0,40405.0,4.17910615]
[1610213575620,0.33467773,40406.0,40405.0,4.15757217]
[1610213576620,0.26117773,40406.0,40405.0,4.15757217]
[1610213577023,0.26117773,40406.0,40405.0,4.17910465]
[1610213577524,0.26117773,40406.0,40405.0,0.15810465]
[1610213577722,0.33447773,40406.0,40405.0,0.13657217]
[1610213579525,0.26117773,40406.0,40405.0,0.13657217]
[1610213579724,0.26117773,40406.0,40405.0,0.00024609]
[1610213580024,0.26117773,40406.0,40404.0,0.0002489]
[1610213580326,0.13632608,40405.0,40403.0,3.5842]
[1610213580526,0.13632608,40405.0,40404.0,0.00024891]
[1610213581829,0.21092608,40405.0,40404.0,0.00024891]
[1610213582033,0.13632608,40405.0,40404.0,0.00024891]
[1610213582230,0.26117773,40406.0,40404.0,0.00024891]
[1610213582430,0.26117773,40406.0,40405.0,0.13632608]
[1610213582934,0.26117773,40406.0,40405.0,0.15806457]
[1610213583133,0.33517773,40406.0,40405.0,0.15806457]
[1610213583334,0.26117773,40406.0,40405.0,0.15806457]
[1610213584034,0.33547773,40406.0,40405.0,0.15806457]
[1610213584434,0.26117773,40406.0,40405.0,0.15806457]
[1610213584834,0.26117773,40406.0,40405.0,3.63706457]
[1610213585435,0.26117773,40406.0,40405.0,3.63681579]
[1610213585635,0.26117773,40406.0,40405.0,3.63706456]
[1610213589643,0.26117773,40406.0,40405.0,3.68149023]
[1610213590941,0.26117773,40406.0,40405.0,3.63706456]
[1610213591544,0.26117773,40406.0,40405.0,3.68149132]
[1610213592246,0.26117773,40406.0,40405.0,3.63706456]
[1610213593144,0.26117773,40406.0,40405.0,3.68149146]
[1610213593544,0.26117773,40406.0,40405.0,3.63706456]
[1610213596748,0.26117773,40406.0,40405.0,3.68148882]
[1610213597749,0.26117773,40406.0,40405.0,5.18148882]
[1610213598749,0.26117773,40406.0,40405.0,3.68148882]
[1610213600652,0.26117773,40406.0,40405.0,5.18148882]
[1610213602355,0.26117773,40406.0,40405.0,3.68148882]
[1610213621781,0.26117773,40406.0,40405.0,5.18148882]
[1610213622281,0.26117773,40406.0,40405.0,5.25150566]
[1610213622482,0.26117773,40406.0,40405.0,0.27250566]
[1610213622882,0.74417773,40406.0,40405.0,0.15806456]
[1610213624283,0.74417773,40406.0,40405.0,0.02173848]
[1610213624484,0.88050381,40406.0,40405.0,0.02173848]
[1610213624684,0.88050381,40406.0,40402.0,0.02174282]
[1610213625083,0.88050381,40406.0,40405.0,0.00024881]
[1610213625283,0.88050381,40406.0,40392.0,0.11017]
[1610213625284,0.88050381,40406.0,40393.0,0.02174869]
[1610213625482,0.39750381,40406.0,40405.0,0.00024886]
[1610213625687,4.53970381,40406.0,40405.0,0.00024886]
[1610213625885,4.53970381,40406.0,40394.0,0.00024886]
[1610213626084,4.53970381,40406.0,40393.0,0.02174869]
[1610213626284,0.39750381,40406.0,40395.0,0.00024888]
[1610213626485,3.5278,40396.0,40395.0,0.00024888]
[1610213626685,0.13632608,40396.0,40394.0,0.00024888]
[1610213626885,0.13632608,40396.0,40395.0,0.00024888]
[1610213627287,3.18092608,40396.0,40395.0,0.00024888]
[1610213627488,3.18092608,40396.0,40393.0,0.00024888]
[1610213627687,3.18092608,40396.0,40395.0,0.00024888]
[1610213627889,3.18092608,40396.0,40394.0,0.0002489]
[1610213628088,3.18092608,40396.0,40393.0,0.0002489]
[1610213628490,3.18092608,40396.0,40395.0,0.0002489]
[1610213628691,3.18092608,40396.0,40394.0,0.0002489]
[1610213628889,3.18092608,40396.0,40395.0,0.0002489]
[1610213629490,3.18092608,40396.0,40393.0,0.0002489]
[1610213631794,3.18092608,40396.0,40392.0,0.11017]
[1610213632194,3.18092608,40396.0,40380.0,0.13632608]
[1610213632595,0.13632608,40381.0,40380.0,0.13632608]
[1610213633195,0.13632608,40381.0,40380.0,0.13657518]
[1610213637701,0.13632608,40381.0,40380.0,0.13657519]
[1610213639602,0.13632608,40381.0,40380.0,0.13632608]
[1610213643710,0.13632608,40381.0,40380.0,0.13657509]
[1610213643910,0.13632608,40381.0,40380.0,0.13632608]
[1610213644312,0.13632608,40381.0,40380.0,0.13657509]
[1610213644510,0.13632608,40381.0,40380.0,0.13632608]
[1610213645514,0.13632608,40381.0,40373.0,0.08073]
[1610213645913,0.13632608,40381.0,40376.0,0.00024902]
[1610213646614,3.698,40380.0,40376.0,0.00024902]
[1610213646816,3.698,40380.0,40376.0,0.13632608]
[1610213647515,0.13632608,40381.0,40373.0,0.08073]
[1610213647715,3.2731,40374.0,40373.0,0.08073]
[1610213647914,3.2731,40374.0,40355.0,0.11104]
[1610213648115,3.2731,40374.0,40356.0,0.00024909]
[1610213648314,3.2731,40374.0,40356.0,0.07534909]
[1610213648516,3.2731,40374.0,40356.0,0.0751]
[1610213648715,0.13632608,40357.0,40356.0,0.0751]
[1610213649218,3.69012608,40357.0,40356.0,0.07534914]
[1610213650418,3.69012608,40357.0,40356.0,0.0751]
[1610213650619,0.13632608,40357.0,40356.0,0.0751]
[1610213652025,3.51112608,40357.0,40356.0,0.0751]
[1610213652820,3.51112608,40357.0,40337.0,0.13632608]
[1610213653421,3.51112608,40357.0,40338.0,0.00024919]
[1610213653621,3.51112608,40357.0,40338.0,0.09484919]
[1610213654222,3.51112608,40357.0,40339.0,0.00024919]
[1610213654823,0.13632608,40340.0,40339.0,0.00024919]
[1610213655024,0.55722608,40340.0,40339.0,0.00024919]
[1610213655623,0.55722608,40340.0,40338.0,0.0946]
[1610213658734,0.75990863,40340.0,40335.0,0.13632608]
[1610213661234,0.62358255,40340.0,40335.0,0.13632608]
[1610213662639,0.20268255,40340.0,40335.0,0.13632608]
[1610213663836,0.20268255,40340.0,40335.0,0.22217608]
[1610213665941,0.20268255,40340.0,40336.0,0.00024913]
[1610213666142,0.20268255,40340.0,40337.0,0.4355]
[1610213666641,0.20268255,40340.0,40335.0,0.22217608]
[1610213666841,0.20268255,40340.0,40339.0,3.2081]
[1610213667441,0.20268255,40340.0,40339.0,3.2083491]
[1610213667843,0.2969,40388.0,40339.0,3.1083491]
[1610213668242,0.00030279,40387.0,40340.0,0.00024905]
[1610213668742,0.00030279,40387.0,40378.0,0.13632608]
[1610213669343,0.2969,40388.0,40378.0,0.13632608]
[1610213670750,0.13632608,40379.0,40378.0,0.13632608]
[1610213673056,0.13632608,40379.0,40371.0,0.11712]
[1610213673957,0.13632608,40379.0,40365.0,3.2789]
[1610213674759,0.13632608,40366.0,40365.0,3.2789]
[1610213678763,0.13632608,40366.0,40365.0,3.2791491]
[1610213687578,0.13632608,40366.0,40365.0,3.3578191]
[1610213688377,0.13632608,40366.0,40365.0,3.37935514]
[1610213690181,0.09821,40381.0,40365.0,3.37935514]
[1610213690381,0.1556,40387.0,40365.0,0.10045514]
[1610213690581,0.1556,40387.0,40374.0,3.4756]
[1610213690781,0.13632608,40377.0,40376.0,0.13632608]
[1610213691180,0.13632608,40377.0,40376.0,0.13657515]
[1610213700094,0.13632608,40377.0,40376.0,0.00024907]
[1610213700693,0.13632608,40377.0,40366.0,0.02049618]
[1610213700894,0.13632608,40367.0,40366.0,0.02025068]
[1610213701494,0.13632608,40367.0,40366.0,0.00024552]
[1610213702294,0.13632608,40367.0,40366.0,0.02049746]
[1610213702494,0.13632608,40367.0,40366.0,0.00024552]
[1610213702795,0.13632608,40367.0,40366.0,0.0204975]
[1610213705397,0.1556,40387.0,40366.0,0.0204975]
[1610213705597,0.1556,40387.0,40373.0,2.8236]
[1610213705998,0.1556,40387.0,40374.0,0.00024548]
[1610213706198,0.1556,40387.0,40374.0,0.02048346]
[1610213706897,0.1556,40387.0,40386.0,0.13632608]
[1610213707397,0.13632608,40388.0,40386.0,0.13632608]
[1610213707600,0.13632608,40388.0,40386.0,3.56567154]
[1610213707797,0.13632608,40388.0,40387.0,0.00024546]
[1610213709600,0.273,40398.0,40387.0,0.00024546]
[1610213709799,0.1556,40406.0,40387.0,0.00024546]
[1610213710005,0.1556,40406.0,40395.0,3.6688]
[1610213710602,0.1556,40406.0,40396.0,0.0002454]
[1610213711003,0.1556,40406.0,40404.0,0.13632608]
[1610213711206,0.1556,40406.0,40405.0,0.00024538]
[1610213712805,4.2411,40423.0,40404.0,0.55352608]
[1610213713007,0.4517,40423.0,40410.0,0.13632608]
[1610213713207,0.4517,40423.0,40391.0,0.11657]
[1610213713407,0.52656,40423.0,40397.0,2.9492]
[1610213713811,0.52656,40423.0,40398.0,0.00024537]
[1610213714210,0.23046,40423.0,40410.0,4.0032]
[1610213714409,0.07486,40423.0,40410.0,4.0032]
[1610213714611,0.07486,40423.0,40411.0,0.00024535]
[1610213715013,0.13632608,40417.0,40416.0,0.13632608]
[1610213715413,0.21082608,40417.0,40416.0,0.13632608]
[1610213715614,0.13632608,40417.0,40416.0,3.84062608]
[1610213716616,0.20992608,40417.0,40416.0,3.84062608]
[1610213718120,0.13632608,40417.0,40416.0,3.84062608]
[1610213719121,0.20962608,40417.0,40416.0,3.84062608]
[1610213720321,0.20962608,40417.0,40416.0,3.7043]
[1610213721026,0.20962608,40417.0,40416.0,3.84062608]
[1610213722025,0.13632608,40417.0,40416.0,3.84062608]
[1610213722927,0.20942608,40417.0,40416.0,3.84062608]
[1610213723329,0.20942608,40417.0,40416.0,0.13632608]
[1610213723735,0.20942608,40417.0,40409.0,2.8539]
[1610213723736,0.13632608,40417.0,40409.0,2.8539]
[1610213725132,0.13632608,40410.0,40409.0,2.8539]
[1610213726633,0.13632608,40410.0,40400.0,0.10482]
[1610213727035,0.13632608,40401.0,40391.0,0.11657]
[1610213727235,0.13632608,40401.0,40389.0,3.9044]
[1610213727439,0.13632608,40401.0,40392.0,0.00024536]
[1610213727638,0.13632608,40401.0,40390.0,0.00024536]
[1610213727838,0.13632608,40401.0,40387.0,0.00024536]
[1610213728236,0.13632608,40401.0,40391.0,0.00024536]
[1610213728438,0.13632608,40401.0,40388.0,0.00024536]
[1610213728638,0.13632608,40401.0,40398.0,2.9469]
[1610213729040,0.13632608,40401.0,40400.0,0.13632608]
[1610213729440,0.13632608,40401.0,40400.0,0.13657144]
[1610213730240,0.1556,40428.0,40400.0,0.13657144]
[1610213730440,0.1556,40428.0,40411.0,3.8554]
[1610213730840,0.1556,40428.0,40412.0,0.00024538]
[1610213731040,0.1556,40428.0,40422.0,0.13632608]
[1610213732540,0.1556,40428.0,40411.0,3.54343288]
[1610213732742,0.2729,40428.0,40411.0,3.54343288]
[1610213732942,0.2729,40428.0,40412.0,0.00024537]
[1610213733141,0.13632608,40416.0,40415.0,0.13632608]
[1610213733341,0.13632608,40416.0,40415.0,0.13657145]
[1610213737850,0.1173,40428.0,40415.0,0.13657145]
[1610213738050,0.1556,40446.0,40415.0,0.13657145]
[1610213738251,0.1556,40446.0,40428.0,3.0026]
[1610213738450,0.0003026,40445.0,40428.0,3.0026]
[1610213738651,0.1155526,40445.0,40429.0,0.0002453]